[Event "FRA-ch Youth U14 2019"]
[Site "Hyeres"]
[Date "2019.04.17"]
[Round "5.1"]
[White "Droin, Augustin"]
[Black "Roux, Baptiste"]
[Result "1-0"]
[ECO "B28"]
[WhiteElo "2088"]
[BlackElo "2054"]
[Annotator "NA RC"]
[PlyCount "117"]
[EventDate "2019.04.14"]
[EventType "swiss"]
[EventCountry "FRA"]
[SourceTitle "playchess.com"]
[Source "ChessBase"]
[SourceQuality "1"]
[TimeControl "5400+30"]

1. e4 {[%emt 0:00:00]} c5 {[%emt 0:00:00]} 2. Nf3 {[%emt 0:00:00]} a6 {[%emt 0:00:05]} 3. c3 {[%emt 0:03:42]} d5 {[%emt 0:00:16]} 4. exd5 {[%emt 0:01:08]} Qxd5 {[%emt 0:00:09]} 5. d4 {[%emt 0:00:04]} e6 {[%emt 0:00:35]} 6. Bd3 {[%emt 0:01:54]} Nc6 {[%emt 0:11:18]} 7. dxc5 {[%emt 0:01:33]} Bxc5 {[%emt 0:00:52]} 8. Qe2 {[%emt 0:00:42]} Nf6 {[%emt 0:03:23]} 9. Bg5 {[%emt 0:03:11]} Ng4 {[%emt 0:19:14]} 10. Bh4 {[%emt 0:02:07]} Nge5 {[%emt 0:09:59]} 11. Be4 {[%emt 0:02:55]} Nxf3+ {[%emt 0:03:11]} 12. Qxf3 {[%emt 0:00:46]} Qd7 {[%emt 0:03:08]} 13. O-O {[%emt 0:02:05]} f5 {[%emt 0:08:52]} 14. Bxc6 {[%emt 0:00:39]} Qxc6 {[%emt 0:01:50]} 15. Qxc6+ {[%emt 0:00:43]} bxc6 {[%emt 0:00:01]} 16. Rd1 {[%emt 0:00:41]} Bb7 {[%emt 0:08:19]} 17. b4 {[%emt 0:01:03]} Be7 {[%emt 0:01:06]} 18. Bxe7 {[%emt 0:00:17]} Kxe7 {[%emt 0:00:01]} 19. Nd2 {[%emt 0:01:01]} Rhd8 {[%emt 0:07:45]} 20. Nb3 {[%emt 0:00:45]} Rxd1+ {[%emt 0:01:03]} 21. Rxd1 {[%emt 0:00:14]} Rd8 {[%emt 0:00:18]} 22. Rxd8 {[%emt 0:00:26]} Kxd8 {[%emt 0:00:01]} 23. Nc5 {[%emt 0:00:25]} Bc8 {[%emt 0:00:06]} 24. f4 {[%emt 0:00:30]} Kc7 {[%emt 0:00:18]} 25. Kf2 {[%emt 0:04:13]} Kd6 {[%emt 0:03:49]} 26. Nd3 {[%emt 0:04:55]} Kd5 {[%emt 0:03:33]} 27. Ke3 {[%emt 0:00:19]} Kc4 {[%emt 0:01:53]} 28. Kd2 {[%emt 0:00:35]} Kd5 {[%emt 0:00:50]} 29. g3 {[%emt 0:01:03]} Ke4 {[%emt 0:03:44]} 30. Ke2 {[%emt 0:04:23]} Kd5 {[%emt 0:00:25]} 31. Ne5 {[%emt 0:00:41]} c5 {[%emt 0:02:50]} 32. Kd3 {[%emt 0:00:18]} cxb4 {[%emt 0:00:26]} 33. cxb4 {[%emt 0:00:05]} Bb7 {[%emt 0:03:17]} 34. h4 {[%emt 0:00:44]} h6 {[%emt 0:00:22]} 35. Nc4 {[%emt 0:01:08]} Bc6 {[%emt 0:00:49]} 36. Nb6+ {[%emt 0:00:33]} Kd6 {[%emt 0:00:01]} 37. Kd4 {[%emt 0:00:08]} Be4 {[%emt 0:01:47]} 38. a4 {[%emt 0:01:01]} Bc2 {[%emt 0:00:59]} 39. b5 {[%emt 0:00:43]} Kc7 {[%emt 0:02:02]} 40. Kc5 {[%emt 0:00:24]} axb5 {[%emt 0:00:26]} 41. axb5 {[%emt 0:00:07]} Be4 {[%emt 0:00:45]} 42. Nc4 {[%emt 0:00:07]} Kd7 {[%emt 0:00:17]} 43. Ne5+ {[%emt 0:00:43]} Ke7 {[%emt 0:00:24]} 44. b6 {[%emt 0:00:48]} Bb7 {[%emt 0:01:31]} 45. Nc4 {[%emt 0:00:26]} g5 {[%emt 0:00:00]} 46. Nd6 {[%emt 0:00:51]} gxh4 {[%emt 0:01:00]} 47. gxh4 {[%emt 0:00:04]} Bd5 {[%emt 0:00:00]} 48. b7 {[%emt 0:00:24]} Bxb7 {[%emt 0:00:00]} 49. Nxb7 {[%emt 0:00:05]} Kf6 {[%emt 0:00:01]} 50. Kd6 {[%emt 0:00:04]} Kg6 {[%emt 0:00:18]} 51. Kxe6 {[%emt 0:00:13]} Kh5 {[%emt 0:00:05]} 52. Kxf5 {[%emt 0:00:11]} Kxh4 {[%emt 0:00:07]} 53. Kg6 {[%emt 0:00:03]} Kg4 {[%emt 0:00:10]} 54. f5 {[%emt 0:00:03]} h5 {[%emt 0:00:05]} 55. f6 {[%emt 0:00:03]} h4 {[%emt 0:00:08]} 56. f7 {[%emt 0:00:06]} h3 {[%emt 0:00:08]} 57. f8=Q {[%emt 0:00:04]} Kg3 {[%emt 0:00:08]} 58. Qf1 {[%emt 0:00:22]} Kh2 {[%emt 0:00:09]} 59. Nc5 {[%emt 0:00:10]} 1-0

[Event "FRA-ch Youth U14 2019"]
[Site "Hyeres"]
[Date "2019.04.18"]
[Round "6.1"]
[White "Auroux, William"]
[Black "Droin, Augustin"]
[Result "0-1"]
[ECO "A29"]
[WhiteElo "1983"]
[BlackElo "2088"]
[Annotator "NA"]
[PlyCount "169"]
[EventDate "2019.04.14"]
[EventType "swiss"]
[EventCountry "FRA"]
[SourceTitle "playchess.com"]
[Source "ChessBase"]
[SourceQuality "1"]
[TimeControl "5400+30"]

1. c4 {[%emt 0:00:00]} e5 {[%emt 0:00:09]} 2. g3 {[%emt 0:00:00]} Nf6 {[%emt 0:00:24]} 3. Bg2 {[%emt 0:00:00]} d5 {[%emt 0:00:24]} 4. cxd5 {[%emt 0:00:00]} Nxd5 {[%emt 0:00:04]} 5. Nc3 {[%emt 0:00:09]} Nb6 {[%emt 0:00:07]} 6. Nf3 {[%emt 0:00:10]} Nc6 {[%emt 0:00:06]} 7. O-O {[%emt 0:00:28]} Be7 {[%emt 0:01:05]} 8. a3 {[%emt 0:00:30]} a5 {[%emt 0:00:16]} 9. d3 {[%emt 0:02:42]} O-O {[%emt 0:01:09]} 10. Be3 {[%emt 0:01:23]} Be6 {[%emt 0:01:17]} 11. Na4 {[%emt 0:01:00]} Nd5 {[%emt 0:04:29]} 12. Bc5 {[%emt 0:00:19]} f6 {[%emt 0:01:59]} 13. Rc1 {[%emt 0:00:58]} b6 {[%emt 0:01:33]} 14. Bxe7 {[%emt 0:03:02]} Ndxe7 {[%emt 0:00:03]} 15. Qc2 {[%emt 0:15:53]} Rc8 {[%emt 0:03:50]} 16. e3 {[%emt 0:06:31]} Qe8 {[%emt 0:05:48]} 17. Nc3 {[%emt 0:13:16]} Qf7 {[%emt 0:01:36]} 18. Qe2 {[%emt 0:04:45]} Rfd8 {[%emt 0:08:44]} 19. Rfd1 {[%emt 0:03:07]} Bb3 {[%emt 0:04:17]} 20. Rd2 {[%emt 0:02:47]} f5 {[%emt 0:00:57]} 21. Nb5 {[%emt 0:13:40]} Qf6 {[%emt 0:07:55]} 22. d4 {[%emt 0:14:01]} e4 {[%emt 0:04:08]} 23. Ne1 {[%emt 0:00:22]} Nd5 {[%emt 0:00:28]} 24. Nc3 {[%emt 0:03:07]} Nxc3 {[%emt 0:00:44]} 25. bxc3 {[%emt 0:02:50]} Qd6 {[%emt 0:00:26]} 26. Qb5 {[%emt 0:06:58]} Be6 {[%emt 0:13:19]} 27. Rcd1 {[%emt 0:01:21]} Qd5 {[%emt 0:01:48]} 28. Bf1 {[%emt 0:01:41]} Qxb5 {[%emt 0:01:53]} 29. Bxb5 {[%emt 0:00:03]} Na7 {[%emt 0:00:05]} 30. Be2 {[%emt 0:01:04]} Bb3 {[%emt 0:04:03]} 31. Rb1 {[%emt 0:00:39]} a4 {[%emt 0:00:54]} 32. Nc2 {[%emt 0:02:09]} c5 {[%emt 0:02:07]} 33. c4 {[%emt 0:00:58]} Nc6 {[%emt 0:01:06]} 34. Na1 {[%emt 0:00:28]} cxd4 {[%emt 0:00:39]} 35. Nxb3 {[%emt 0:00:22]} axb3 {[%emt 0:00:04]} 36. Rxb3 {[%emt 0:00:25]} d3 {[%emt 0:00:31]} 37. Rxb6 {[%emt 0:00:50]} dxe2 {[%emt 0:00:32]} 38. Rxe2 {[%emt 0:00:13]} Ne5 {[%emt 0:00:42]} 39. Rb5 {[%emt 0:00:33]} Nf3+ {[%emt 0:01:54]} 40. Kg2 {[%emt 0:00:10]} g6 {[%emt 0:00:07]} 41. Rb1 {[%emt 0:00:47]} Rd2 {[%emt 0:00:39]} 42. Rxd2 {[%emt 0:00:19]} Nxd2 {[%emt 0:00:03]} 43. Ra1 {[%emt 0:00:25]} Nxc4 {[%emt 0:00:16]} 44. a4 {[%emt 0:00:06]} Ra8 {[%emt 0:00:06]} 45. h3 {[%emt 0:00:30]} Ra5 {[%emt 0:00:58]} 46. g4 {[%emt 0:00:18]} fxg4 {[%emt 0:02:18]} 47. hxg4 {[%emt 0:00:02]} Nb6 {[%emt 0:00:07]} 48. Kg3 {[%emt 0:01:38]} Rxa4 {[%emt 0:00:10]} 49. Rb1 {[%emt 0:00:31]} Nd5 {[%emt 0:00:11]} 50. Rb3 {[%emt 0:00:42]} Ra7 {[%emt 0:00:50]} 51. f3 {[%emt 0:00:37]} exf3 {[%emt 0:00:06]} 52. Kxf3 {[%emt 0:00:19]} Rf7+ {[%emt 0:00:33]} 53. Kg3 {[%emt 0:00:31]} Re7 {[%emt 0:00:22]} 54. Kf3 {[%emt 0:00:41]} Nf6 {[%emt 0:00:17]} 55. Rb8+ {[%emt 0:00:31]} Kg7 {[%emt 0:00:17]} 56. Rb3 {[%emt 0:00:23]} g5 {[%emt 0:00:36]} 57. Rb5 {[%emt 0:00:16]} h6 {[%emt 0:00:20]} 58. Rb3 {[%emt 0:00:20]} Nd7 {[%emt 0:00:49]} 59. Rc3 {[%emt 0:00:45]} Ne5+ {[%emt 0:00:46]} 60. Kg3 {[%emt 0:00:07]} Rd7 {[%emt 0:00:12]} 61. Rc5 {[%emt 0:00:32]} Kf6 {[%emt 0:00:05]} 62. Rb5 {[%emt 0:00:49]} Rd3 {[%emt 0:00:09]} 63. Rb6+ {[%emt 0:00:08]} Kg7 {[%emt 0:00:03]} 64. Rb7+ {[%emt 0:00:11]} Kf8 {[%emt 0:00:07]} 65. Rb8+ {[%emt 0:00:53]} Ke7 {[%emt 0:00:06]} 66. Rb7+ {[%emt 0:00:07]} Kd8 {[%emt 0:00:02]} 67. Kf2 {[%emt 0:00:59]} Nxg4+ {[%emt 0:00:21]} 68. Kf3 {[%emt 0:00:08]} Nxe3 {[%emt 0:00:11]} 69. Ke4 {[%emt 0:00:20]} Ra3 {[%emt 0:00:03]} 70. Rh7 {[%emt 0:00:07]} Ng4 {[%emt 0:00:05]} 71. Kf5 {[%emt 0:00:19]} Ra4 {[%emt 0:00:13]} 72. Kg6 {[%emt 0:00:48]} Rf4 {[%emt 0:01:02]} 73. Ra7 {[%emt 0:00:39]} Rf6+ {[%emt 0:00:28]} 74. Kh5 {[%emt 0:00:16]} Rf4 {[%emt 0:00:20]} 75. Kg6 {[%emt 0:00:49]} Ke8 {[%emt 0:01:17]} 76. Kh5 {[%emt 0:00:42]} Kf8 {[%emt 0:01:38]} 77. Rb7 {[%emt 0:00:42]} Re4 {[%emt 0:01:03]} 78. Ra7 {[%emt 0:00:40]} Ne3 {[%emt 0:00:31]} 79. Kxh6 {[%emt 0:00:17]} g4 {[%emt 0:00:03]} 80. Ra1 {[%emt 0:00:44]} g3 {[%emt 0:00:04]} 81. Rg1 {[%emt 0:00:34]} g2 {[%emt 0:00:16]} 82. Kg5 {[%emt 0:00:32]} Rg4+ {[%emt 0:00:05]} 83. Kf6 {[%emt 0:00:38]} Rf4+ {[%emt 0:00:07]} 84. Ke5 {[%emt 0:00:16]} Rf1 {[%emt 0:00:03]} 85. Kd4 {[%emt 0:01:38]} 0-1

[Event "FRA-ch Youth U14 2019"]
[Site "Hyeres"]
[Date "2019.04.18"]
[Round "6.2"]
[White "Emmenecker, Pierre-Antoine"]
[Black "Maugenest, Ghislain"]
[Result "1-0"]
[ECO "C41"]
[WhiteElo "1950"]
[BlackElo "2167"]
[Annotator "NA"]
[PlyCount "115"]
[EventDate "2019.04.14"]
[EventType "swiss"]
[EventCountry "FRA"]
[SourceTitle "playchess.com"]
[Source "ChessBase"]
[SourceQuality "1"]
[TimeControl "5400+30"]

1. e4 {[%emt 0:00:00]} e5 {[%emt 0:00:00]} 2. Nf3 {[%emt 0:00:00]} Nc6 {[%emt 0:00:00]} 3. d4 {[%emt 0:00:00]} exd4 {[%emt 0:00:04]} 4. Bc4 {[%emt 0:00:00]} d6 {[%emt 0:00:35]} 5. Nxd4 {[%emt 0:06:27]} Nf6 {[%emt 0:02:20]} 6. Nc3 {[%emt 0:03:47]} Be7 {[%emt 0:02:38]} 7. O-O {[%emt 0:02:57]} O-O {[%emt 0:00:53]} 8. a4 {[%emt 0:02:23]} Ne5 {[%emt 0:17:29]} 9. Ba2 {[%emt 0:00:24]} c6 {[%emt 0:00:45]} 10. h3 {[%emt 0:12:44]} Qa5 {[%emt 0:15:34]} 11. Be3 {[%emt 0:04:38]} Rd8 {[%emt 0:04:18]} 12. Qd2 {[%emt 0:03:51]} Qb4 {[%emt 0:13:15]} 13. f4 {[%emt 0:20:57]} Nc4 {[%emt 0:01:58]} 14. Bxc4 {[%emt 0:00:10]} Qxc4 {[%emt 0:00:03]} 15. b3 {[%emt 0:01:08]} Qb4 {[%emt 0:02:25]} 16. a5 {[%emt 0:03:45]} d5 {[%emt 0:08:02]} 17. Ra4 {[%emt 0:04:06]} dxe4 {[%emt 0:02:03]} 18. Rxb4 {[%emt 0:00:28]} Bxb4 {[%emt 0:00:01]} 19. Qc1 {[%emt 0:10:48]} Bxc3 {[%emt 0:00:44]} 20. Ne2 {[%emt 0:00:26]} Bxa5 {[%emt 0:04:14]} 21. Rd1 {[%emt 0:01:56]} Rxd1+ {[%emt 0:02:15]} 22. Qxd1 {[%emt 0:00:01]} Nd5 {[%emt 0:00:22]} 23. Bd4 {[%emt 0:01:14]} Bc7 {[%emt 0:01:28]} 24. Be5 {[%emt 0:09:53]} Bxe5 {[%emt 0:03:20]} 25. fxe5 {[%emt 0:00:10]} Bf5 {[%emt 0:00:31]} 26. g4 {[%emt 0:00:36]} Bg6 {[%emt 0:00:48]} 27. c4 {[%emt 0:00:41]} Nb6 {[%emt 0:01:37]} 28. Nf4 {[%emt 0:01:15]} Re8 {[%emt 0:08:00]} 29. c5 {[%emt 0:02:26]} Nd5 {[%emt 0:01:51]} 30. Nxd5 {[%emt 0:00:10]} cxd5 {[%emt 0:00:01]} 31. Qxd5 {[%emt 0:00:09]} e3 {[%emt 0:02:50]} 32. Kf1 {[%emt 0:00:36]} Kf8 {[%emt 0:03:53]} 33. Ke2 {[%emt 0:01:31]} h5 {[%emt 0:01:03]} 34. Qd6+ {[%emt 0:01:53]} Re7 {[%emt 0:00:02]} 35. b4 {[%emt 0:01:21]} hxg4 {[%emt 0:00:13]} 36. hxg4 {[%emt 0:00:01]} Be4 {[%emt 0:00:14]} 37. b5 {[%emt 0:01:26]} a6 {[%emt 0:00:40]} 38. c6 {[%emt 0:01:52]} bxc6 {[%emt 0:00:37]} 39. bxc6 {[%emt 0:01:10]} Bxc6 {[%emt 0:00:27]} 40. Qxc6 {[%emt 0:01:02]} Rxe5 {[%emt 0:00:07]} 41. Qd6+ {[%emt 0:00:16]} Re7 {[%emt 0:00:03]} 42. Qxa6 {[%emt 0:00:08]} f6 {[%emt 0:01:04]} 43. Qc8+ {[%emt 0:00:14]} Kf7 {[%emt 0:00:43]} 44. Qc4+ {[%emt 0:00:37]} Kg6 {[%emt 0:00:49]} 45. Qd3+ {[%emt 0:00:07]} Kh6 {[%emt 0:00:38]} 46. Qd5 {[%emt 0:01:09]} Re5 {[%emt 0:00:14]} 47. Qf3 {[%emt 0:00:34]} Kg5 {[%emt 0:00:29]} 48. Qh3 {[%emt 0:00:18]} g6 {[%emt 0:00:21]} 49. Qf3 {[%emt 0:00:56]} Re6 {[%emt 0:01:18]} 50. Qd5+ {[%emt 0:00:14]} Re5 {[%emt 0:00:01]} 51. Qf3 {[%emt 0:00:01]} Re7 {[%emt 0:01:20]} 52. Qg2 {[%emt 0:00:40]} Re8 {[%emt 0:00:26]} 53. Qf3 {[%emt 0:01:34]} Re5 {[%emt 0:00:02]} 54. Qg2 {[%emt 0:00:05]} Kh4 {[%emt 0:00:57]} 55. Kf3 {[%emt 0:01:40]} e2 {[%emt 0:00:49]} 56. Qg3+ {[%emt 0:00:01]} Kg5 {[%emt 0:00:05]} 57. Qf4+ {[%emt 0:00:05]} Kh4 {[%emt 0:00:05]} 58. Qh6+ {[%emt 0:00:27]} 1-0

[Event "FRA-ch Youth U14 2019"]
[Site "Hyeres"]
[Date "2019.04.18"]
[Round "6.3"]
[White "Papadiamandis, Elliot"]
[Black "Bottazzi, Ulysse"]
[Result "1-0"]
[ECO "B90"]
[WhiteElo "2157"]
[BlackElo "1967"]
[Annotator "NA"]
[PlyCount "85"]
[EventDate "2019.04.14"]
[EventType "swiss"]
[EventCountry "FRA"]
[SourceTitle "playchess.com"]
[Source "ChessBase"]
[SourceQuality "1"]
[TimeControl "5400+30"]

1. e4 {[%emt 0:00:00]} c5 {[%emt 0:00:00]} 2. Nf3 {[%emt 0:00:00]} d6 {[%emt 0:00:00]} 3. d4 {[%emt 0:00:00]} cxd4 {[%emt 0:00:00]} 4. Nxd4 {[%emt 0:00:30]} Nf6 {[%emt 0:00:08]} 5. Nc3 {[%emt 0:00:42]} a6 {[%emt 0:00:21]} 6. f3 {[%emt 0:00:22]} Qb6 {[%emt 0:01:06]} 7. Nb3 {[%emt 0:01:46]} e6 {[%emt 0:00:28]} 8. Qe2 {[%emt 0:02:34]} Qc7 {[%emt 0:00:46]} 9. Be3 {[%emt 0:01:56]} Nbd7 {[%emt 0:00:51]} 10. g4 {[%emt 0:03:15]} Nb6 {[%emt 0:07:20]} 11. a4 {[%emt 0:04:38]} d5 {[%emt 0:18:04]} 12. g5 {[%emt 0:09:32]} Nfd7 {[%emt 0:00:19]} 13. exd5 {[%emt 0:01:48]} Bb4 {[%emt 0:00:34]} 14. dxe6 {[%emt 0:08:58]} fxe6 {[%emt 0:01:30]} 15. Bd2 {[%emt 0:14:33]} Ne5 {[%emt 0:18:11]} 16. f4 {[%emt 0:08:22]} Ng6 {[%emt 0:02:16]} 17. f5 {[%emt 0:16:33]} Nf4 {[%emt 0:16:17]} 18. Qe4 {[%emt 0:05:28]} Nfd5 {[%emt 0:09:28]} 19. Nxd5 {[%emt 0:00:49]} Bxd2+ {[%emt 0:00:16]} 20. Nxd2 {[%emt 0:00:19]} Nxd5 {[%emt 0:00:32]} 21. fxe6 {[%emt 0:00:56]} Ne7 {[%emt 0:04:02]} 22. Bd3 {[%emt 0:02:42]} Qc6 {[%emt 0:13:46]} 23. Qxc6+ {[%emt 0:00:43]} Nxc6 {[%emt 0:00:03]} 24. O-O {[%emt 0:07:25]} Bxe6 {[%emt 0:01:11]} 25. Rae1 {[%emt 0:00:28]} Kd7 {[%emt 0:00:41]} 26. Ne4 {[%emt 0:00:29]} b6 {[%emt 0:01:34]} 27. Ng3 {[%emt 0:01:24]} Rae8 {[%emt 0:01:07]} 28. Bxa6 {[%emt 0:00:50]} Kc7 {[%emt 0:01:06]} 29. Bb5 {[%emt 0:01:13]} Bd5 {[%emt 0:01:22]} 30. Rd1 {[%emt 0:00:57]} Re5 {[%emt 0:00:32]} 31. Rf5 {[%emt 0:02:21]} Rxf5 {[%emt 0:00:52]} 32. Nxf5 {[%emt 0:00:01]} Be4 {[%emt 0:00:33]} 33. Nxg7 {[%emt 0:01:01]} Ne5 {[%emt 0:00:25]} 34. Ne8+ {[%emt 0:00:40]} Kb8 {[%emt 0:00:30]} 35. Rd6 {[%emt 0:01:33]} Nf3+ {[%emt 0:00:29]} 36. Kf2 {[%emt 0:00:09]} Nxg5 {[%emt 0:00:22]} 37. Rxb6+ {[%emt 0:00:43]} Ka7 {[%emt 0:00:22]} 38. Ra6+ {[%emt 0:00:15]} Kb8 {[%emt 0:00:07]} 39. h4 {[%emt 0:01:01]} Nf3 {[%emt 0:01:07]} 40. Nd6 {[%emt 0:00:23]} Rf8 {[%emt 0:00:48]} 41. Nxe4 {[%emt 0:00:23]} Nd4+ {[%emt 0:00:25]} 42. Rf6 {[%emt 0:00:22]} Rxf6+ {[%emt 0:00:13]} 43. Nxf6 {[%emt 0:00:02]} 1-0

[Event "FRA-ch Youth U14 2019"]
[Site "Hyeres"]
[Date "2019.04.18"]
[Round "6.4"]
[White "Mathieu, Phileas"]
[Black "Candelot, Clement"]
[Result "1-0"]
[ECO "C57"]
[WhiteElo "2105"]
[BlackElo "1875"]
[Annotator "NA"]
[PlyCount "53"]
[EventDate "2019.04.14"]
[EventType "swiss"]
[EventCountry "FRA"]
[SourceTitle "playchess.com"]
[Source "ChessBase"]
[SourceQuality "1"]
[TimeControl "5400+30"]

1. e4 {[%emt 0:00:00]} e5 {[%emt 0:00:00]} 2. Nf3 {[%emt 0:00:00]} Nc6 {[%emt 0:00:40]} 3. Bc4 {[%emt 0:00:00]} Nf6 {[%emt 0:00:43]} 4. Ng5 {[%emt 0:01:03]} d5 {[%emt 0:01:05]} 5. exd5 {[%emt 0:00:48]} b5 {[%emt 0:01:57]} 6. Bf1 {[%emt 0:00:10]} Qxd5 {[%emt 0:14:16]} 7. Nc3 {[%emt 0:00:47]} Qc5 {[%emt 0:10:28]} 8. Bxb5 {[%emt 0:07:56]} Be7 {[%emt 0:09:05]} 9. Qf3 {[%emt 0:22:50]} Bd7 {[%emt 0:15:33]} 10. b4 {[%emt 0:07:42]} Qb6 {[%emt 0:02:52]} 11. Nd5 {[%emt 0:02:27]} Nxd5 {[%emt 0:04:29]} 12. Qxf7+ {[%emt 0:11:36]} Kd8 {[%emt 0:00:29]} 13. Qxd5 {[%emt 0:01:25]} Bxg5 {[%emt 0:01:04]} 14. O-O {[%emt 0:05:14]} a6 {[%emt 0:04:17]} 15. Ba4 {[%emt 0:02:14]} Re8 {[%emt 0:09:42]} 16. d4 {[%emt 0:12:30]} Bf6 {[%emt 0:03:08]} 17. Bb2 {[%emt 0:02:25]} Kc8 {[%emt 0:03:38]} 18. dxe5 {[%emt 0:00:52]} Bxe5 {[%emt 0:02:48]} 19. Bxe5 {[%emt 0:03:26]} Rxe5 {[%emt 0:00:49]} 20. Qg8+ {[%emt 0:00:04]} Re8 {[%emt 0:03:07]} 21. Qxg7 {[%emt 0:00:55]} Re7 {[%emt 0:00:11]} 22. Qf8+ {[%emt 0:01:06]} Re8 {[%emt 0:00:13]} 23. Qg7 {[%emt 0:05:22]} Re7 {[%emt 0:00:53]} 24. Qg5 {[%emt 0:03:37]} Re8 {[%emt 0:03:29]} 25. Rad1 {[%emt 0:01:59]} Ne5 {[%emt 0:02:56]} 26. Bxd7+ {[%emt 0:02:10]} Nxd7 {[%emt 0:00:04]} 27. Qd5 {[%emt 0:00:04]} 1-0

[Event "FRA-ch Youth U14 2019"]
[Site "Hyeres"]
[Date "2019.04.19"]
[Round "7.1"]
[White "Droin, Augustin"]
[Black "Mathieu, Phileas"]
[Result "0-1"]
[ECO "B30"]
[WhiteElo "2088"]
[BlackElo "2105"]
[Annotator "NA"]
[PlyCount "87"]
[EventDate "2019.04.14"]
[EventType "swiss"]
[EventCountry "FRA"]
[SourceTitle "playchess.com"]
[Source "ChessBase"]
[SourceQuality "1"]
[TimeControl "5400+30"]

1. e4 {[%emt 0:00:00]} c5 {[%emt 0:00:00]} 2. Nf3 {[%emt 0:00:00]} Nc6 {[%emt 0:00:00]} 3. Bb5 {[%emt 0:00:00]} e6 {[%emt 0:00:00]} 4. Bxc6 {[%emt 0:00:52]} bxc6 {[%emt 0:00:00]} 5. O-O {[%emt 0:01:19]} Ne7 {[%emt 0:00:00]} 6. e5 {[%emt 0:02:37]} Qc7 {[%emt 0:01:22]} 7. d3 {[%emt 0:03:21]} Ng6 {[%emt 0:01:27]} 8. Qe2 {[%emt 0:00:27]} f6 {[%emt 0:00:30]} 9. Re1 {[%emt 0:00:30]} Be7 {[%emt 0:00:30]} 10. Nbd2 {[%emt 0:00:30]} O-O {[%emt 0:00:30]} 11. exf6 {[%emt 0:00:30]} gxf6 {[%emt 0:00:30]} 12. Nf1 {[%emt 0:00:30]} d5 {[%emt 0:00:30]} 13. h4 {[%emt 0:00:30]} Kh8 {[%emt 0:00:30]} 14. c3 {[%emt 0:00:30]} Rg8 {[%emt 0:00:30]} 15. d4 {[%emt 0:00:30]} Nf4 {[%emt 0:00:30]} 16. Bxf4 {[%emt 0:00:30]} Qxf4 {[%emt 0:00:30]} 17. N1h2 {[%emt 0:00:30]} Bd6 {[%emt 0:00:30]} 18. Qe3 {[%emt 0:00:30]} Qf5 {[%emt 0:00:30]} 19. Kh1 {[%emt 0:00:30]} Bd7 {[%emt 0:00:30]} 20. Rg1 {[%emt 0:00:30]} e5 {[%emt 0:00:30]} 21. dxc5 {[%emt 0:00:30]} Bc7 {[%emt 0:00:30]} 22. Rae1 {[%emt 0:00:30]} Rae8 {[%emt 0:00:30]} 23. b4 {[%emt 0:00:30]} Qh5 {[%emt 0:00:30]} 24. g3 {[%emt 0:00:30]} Rg7 {[%emt 0:00:30]} 25. Nd2 {[%emt 1:08:39]} Reg8 {[%emt 1:19:34]} 26. Qf3 {[%emt 0:00:38]} Qh6 {[%emt 0:01:20]} 27. Qe3 {[%emt 0:00:30]} Qh5 {[%emt 0:00:30]} 28. Qf3 {[%emt 0:00:35]} Qg6 {[%emt 0:00:30]} 29. Qe3 {[%emt 0:02:57]} f5 {[%emt 0:01:56]} 30. Ndf3 {[%emt 0:03:32]} e4 {[%emt 0:00:34]} 31. Ng5 {[%emt 0:02:29]} Qf6 {[%emt 0:03:24]} 32. Nh3 {[%emt 0:00:56]} f4 {[%emt 0:02:26]} 33. Nxf4 {[%emt 0:00:30]} Bxf4 {[%emt 0:00:30]} 34. gxf4 {[%emt 0:00:32]} Qxh4 {[%emt 0:00:55]} 35. Rxg7 {[%emt 0:00:30]} Rxg7 {[%emt 0:00:30]} 36. Rg1 {[%emt 0:00:00]} Bg4 {[%emt 0:00:30]} 37. Rxg4 {[%emt 0:03:24]} Rxg4 {[%emt 0:00:12]} 38. Qd4+ {[%emt 0:01:49]} Rg7 {[%emt 0:00:55]} 39. Qe5 {[%emt 0:00:09]} Qe7 {[%emt 0:02:24]} 40. Qd4 {[%emt 0:00:30]} Qf7 {[%emt 0:00:30]} 41. Qe5 {[%emt 0:00:30]} Qe7 {[%emt 0:00:30]} 42. Qd4 {[%emt 0:00:30]} h6 {[%emt 0:00:30]} 43. b5 {[%emt 0:00:30]} Qf7 {[%emt 0:00:30]} 44. Qe5 {[%emt 0:01:14]} 0-1